bitfinex/quotes_SOLUSD_20241113
["timestamp","ask_amount","ask_price","bid_price","bid_amount"]
[1731482806312,4.9095,203.69,203.62,23.18689176]
[1731482807211,28.09639176,203.69,203.61,23.776884]
[1731482807602,4.909,203.71,203.64,23.18689176]
[1731482807800,23.18689176,203.73,203.64,23.18689176]
[1731482808004,29.41379176,203.75,203.66,23.18689176]
[1731482808217,34.32179176,203.75,203.66,23.18689176]
[1731482808815,28.09489176,203.75,203.66,23.18689176]
[1731482809188,28.09489176,203.75,203.68,23.18689176]
[1731482809390,4.908,203.75,203.68,335.18689176]
[1731482809909,0.85204361,203.76,203.68,23.18689176]
[1731482810115,23.18689176,203.79,203.7,23.18689176]
[1731482810289,4.9069,203.8,203.72,23.18689176]
[1731482810795,23.18689176,203.81,203.73,23.776884]
[1731482810796,28.09349176,203.81,203.73,23.776884]
[1731482810994,4.9066,203.81,203.75,23.776884]
[1731482812108,6.143,203.91,203.81,23.776884]
[1731482812291,4.9031,203.95,203.87,23.18689176]
[1731482812920,0.512703,203.96,203.91,23.18689176]
[1731482813116,0.512703,203.96,203.88,43.776884]
[1731482813117,0.512703,203.96,203.95,23.18689176]
[1731482813299,0.512703,203.96,203.89,23.18689176]
[1731482813499,5.415703,203.96,203.89,23.18689176]
[1731482814007,28.60259476,203.96,203.88,23.776884]
[1731482814211,23.18689176,203.94,203.87,23.776884]
[1731482815913,4.9033,203.95,203.88,23.18689176]
[1731482816154,0.512703,203.96,203.85,28.682184]
[1731482816155,0.512703,203.96,203.92,23.18689176]
[1731482816432,0.512703,203.96,203.92,312.0]
[1731482816433,5.415803,203.96,203.92,312.0]
[1731482817223,5.415803,203.96,203.9,23.18689176]
[1731482817801,0.512703,203.96,203.9,23.18689176]
[1731482818310,0.512703,203.96,203.92,23.18689176]
[1731482818904,0.512703,203.96,203.9,23.18689176]
[1731482819222,0.512703,203.96,203.9,46.96377576]
[1731482819524,5.415703,203.96,203.88,46.96377576]
[1731482822506,23.18689176,203.91,203.77,15.8018]
[1731482822703,5.415703,203.96,203.81,29.36459176]
[1731482822704,23.18689176,203.89,203.81,29.36459176]
[1731482822902,23.18689176,203.85,203.77,23.18689176]
[1731482823233,23.18689176,203.83,203.75,23.18689176]
[1731482823410,23.18689176,203.81,203.73,23.18689176]
[1731482823921,7.67108507,203.87,203.71,23.18689176]
[1731482823922,23.18689176,203.79,203.71,23.18689176]
[1731482824123,23.18689176,203.77,203.69,23.18689176]
[1731482824340,20.0,203.78,203.71,23.18689176]
[1731482824525,4.9074,203.77,203.69,23.18689176]
[1731482824829,28.09399176,203.79,203.71,23.18689176]
[1731482825032,20.0,203.78,203.71,23.18689176]
[1731482825325,20.0,203.78,203.69,23.18689176]
[1731482825534,4.9066,203.81,203.71,23.18689176]
[1731482825830,30.7809,203.88,203.78,23.18689176]
[1731482825831,4.9055,203.85,203.78,23.18689176]
[1731482826215,23.18689176,203.82,203.74,23.776884]
[1731482826615,4.9065,203.81,203.74,23.776884]
[1731482826922,4.9057,203.85,203.77,23.18689176]
[1731482827120,4.9057,203.85,203.74,40.955484]
[1731482827121,23.18689176,203.84,203.78,23.776884]
[1731482827321,23.18689176,203.84,203.76,23.776884]
[1731482827832,4.9052,203.87,203.8,23.776884]
[1731482828410,23.18689176,203.89,203.81,23.18689176]
[1731482828728,4.9041,203.91,203.84,23.776884]
[1731482828917,4.9041,203.91,203.85,23.18689176]
[1731482829239,28.09099176,203.91,203.85,312.0]
[1731482829813,4.9041,203.91,203.85,335.18689176]
[1731482830136,28.09059176,203.93,203.85,335.18689176]
[1731482830721,4.9033,203.95,203.89,23.18689176]
[1731482831026,0.512703,203.96,203.91,23.18689176]
[1731482832333,5.415603,203.96,203.89,23.776884]
[1731482833337,23.18689176,203.95,203.86,23.18689176]
[1731482833518,23.18689176,203.92,203.84,23.18689176]
[1731482833927,23.18689176,203.9,203.84,23.18689176]
[1731482834331,23.18689176,203.92,203.84,23.18689176]
[1731482834525,4.9041,203.91,203.84,23.18689176]
[1731482836733,23.18689176,203.94,203.87,23.776884]
[1731482837228,23.18689176,203.9,203.82,23.18689176]
[1731482837535,23.18689176,203.88,203.8,335.18689176]
[1731482837734,23.18689176,203.86,203.8,23.18689176]
[1731482838039,23.18689176,203.86,203.78,38.82049176]
[1731482838331,28.09189176,203.88,203.81,23.18689176]
[1731482838744,4.9039,203.92,203.85,23.18689176]
[1731482839038,4.9039,203.92,203.86,23.776884]
[1731482839247,4.9039,203.92,203.87,23.18689176]
[1731482839618,23.18689176,203.93,203.87,23.18689176]
[1731482839821,4.9035,203.94,203.88,23.776884]
[1731482840728,4.9035,203.94,203.88,335.776884]
[1731482841243,23.18689176,203.95,203.88,340.681584]
[1731482841546,5.415603,203.96,203.9,23.776884]
[1731482842045,0.512703,203.96,203.9,23.776884]
[1731482842344,0.512703,203.96,203.92,23.776884]
[1731482843732,0.512703,203.96,203.94,23.776884]
[1731482844643,0.512703,203.96,203.95,335.776884]
[1731482845145,0.512703,203.96,203.95,312.0]
[1731482845329,0.512703,203.96,203.92,23.776884]
[1731482848231,0.512703,203.96,203.92,335.776884]
[1731482849936,0.512703,203.96,203.95,23.18689176]
[1731482850137,4.9,204.08,203.97,23.776884]
[1731482850360,4.9,204.08,204.02,23.18689176]
[1731482851641,4.9,204.08,204.0,23.18689176]
[1731482851948,4.9,204.08,204.01,23.776884]
[1731482852336,4.9,204.08,204.02,23.18689176]
[1731482852939,4.9,204.08,204.02,335.18689176]
[1731482853849,23.18689176,204.04,203.97,23.776884]
[1731482854047,23.18689176,204.04,203.96,23.18689176]
[1731482854248,23.18689176,204.02,203.92,29.62139176]
[1731482854552,23.18689176,204.04,203.94,23.18689176]
[1731482854729,20.0,204.03,203.94,23.18689176]
[1731482854930,4.9014,204.02,203.94,23.18689176]
[1731482855851,4.9014,204.02,203.95,23.776884]
[1731482856357,28.08829176,204.02,203.95,23.776884]
[1731482856646,4.9014,204.02,203.97,23.776884]
[1731482856829,4.9014,204.02,203.97,312.0]
[1731482857036,4.9014,204.02,203.96,23.18689176]
[1731482857236,4.9014,204.02,203.95,23.776884]
[1731482858152,23.18689176,204.04,203.96,23.18689176]
[1731482858351,20.0,204.05,203.98,23.18689176]
[1731482858558,4.9012,204.03,203.97,23.776884]
[1731482860058,4.9012,204.03,203.97,335.776884]
[1731482860364,4.9012,204.03,203.97,23.776884]
[1731482862757,23.18689176,204.06,203.99,23.776884]
[1731482863145,23.18689176,204.06,203.99,335.776884]
[1731482863960,4.9007,204.05,203.99,335.776884]
[1731482864971,23.18689176,204.1,204.02,23.18689176]
[1731482865150,23.18689176,204.1,204.03,23.776884]
[1731482865547,23.18689176,204.1,204.01,23.776884]
[1731482865745,23.18689176,204.08,204.01,23.776884]
[1731482866647,28.08659176,204.1,204.01,40.932784]
[1731482867650,28.08659176,204.1,204.01,36.031184]
[1731482867848,23.18689176,204.12,204.04,23.18689176]
[1731482868162,0.512703,204.16,204.03,335.776884]
[1731482868163,23.18689176,204.14,204.07,23.776884]
[1731482868345,23.18689176,204.14,204.05,23.776884]
[1731482868747,19.28737989,204.13,204.05,23.776884]
[1731482870346,14.38857989,204.11,204.02,14.38857989]
[1731482871351,4.8995,204.1,204.02,326.38857989]
[1731482871553,14.38857989,204.09,204.03,23.776884]
[1731482871947,4.8995,204.1,203.98,17.1583]
[1731482871948,14.38857989,204.07,203.99,23.776884]
[1731482872372,14.38857989,204.07,203.98,31.54707989]
[1731482872550,14.38857989,204.07,203.98,26.64467989]
[1731482872754,17.1483,204.1,203.96,14.38857989]
[1731482872755,14.38857989,204.05,203.96,14.38857989]
[1731482873660,4.9009,204.04,203.96,14.38857989]
[1731482873858,14.38857989,204.01,203.92,14.38857989]
[1731482874072,14.38857989,203.99,203.9,31.55347989]
[1731482874245,14.38857989,203.99,203.92,14.38857989]
[1731482874446,14.38857989,204.01,203.94,14.38857989]
[1731482874649,4.9009,204.04,203.98,14.38857989]
[1731482874869,14.38857989,204.03,203.99,312.0]
[1731482875061,14.38857989,204.03,203.93,14.38857989]
[1731482875372,14.38857989,204.01,203.93,14.38857989]
[1731482875755,4.9019,204.0,203.93,14.38857989]
[1731482876258,4.9019,204.0,203.94,23.776884]
[1731482876867,48.23072996,204.09,203.94,23.776884]
[1731482876868,14.38857989,204.07,204.0,23.776884]
[1731482877051,4.9,204.08,204.0,23.776884]
[1731482877052,14.38857989,204.05,204.0,23.776884]
[1731482877250,14.38857989,204.05,203.98,23.776884]
[1731482877760,4.9009,204.04,203.98,23.776884]
[1731482878071,14.38857989,204.01,203.93,26.64767989]
[1731482879252,4.9019,204.0,203.93,26.64767989]
[1731482879447,4.9019,204.0,203.94,23.776884]
[1731482880275,12.2517,204.06,203.94,23.776884]
[1731482880473,14.38857989,204.01,203.94,23.776884]
[1731482880677,14.38857989,203.97,203.89,26.64987989]
[1731482880883,14.38857989,203.91,203.83,14.38857989]
[1731482881049,14.38857989,203.91,203.83,326.38857989]
[1731482881253,14.38857989,203.91,203.76,0.1]
[1731482881254,14.38857989,203.87,203.76,12.2689]
[1731482881555,14.38857989,203.81,203.74,16.5037]
[1731482881753,14.38857989,203.81,203.7,23.2401]
[1731482881976,14.38857989,203.83,203.76,14.38857989]
[1731482882358,14.38857989,203.83,203.74,14.38857989]
[1731482882660,14.38857989,203.81,203.72,19.29707989]
[1731482882865,4.9062,203.83,203.73,23.09269547]
[1731482883071,27.99889547,203.83,203.75,23.09269547]
[1731482883778,23.09269547,203.83,203.75,23.09269547]
[1731482883953,27.99889547,203.83,203.75,23.09269547]
[1731482884161,23.09269547,203.81,203.76,312.0]
[1731482884852,27.99919547,203.81,203.76,312.0]
[1731482885757,27.99919547,203.81,203.7,6.0582]
[1731482885758,23.09269547,203.77,203.67,35.36729547]
[1731482885962,23.09269547,203.79,203.7,23.09269547]
[1731482886166,23.09269547,203.77,203.68,23.09269547]
[1731482886556,4.9065,203.81,203.7,23.09269547]
[1731482886755,20.0,203.85,203.7,23.09269547]
[1731482886756,4.9072,203.78,203.7,23.09269547]
[1731482887376,23.09269547,203.75,203.66,23.09269547]
[1731482888472,4.9082,203.74,203.66,23.09269547]
[1731482888680,4.9082,203.74,203.68,312.0]
[1731482889373,23.09269547,203.71,203.62,38.46619547]
[1731482889571,4.9072,203.78,203.68,23.09269547]
[1731482889871,23.09269547,203.76,203.68,23.09269547]
[1731482890076,23.09269547,203.76,203.63,0.1]
[1731482890077,27.99989547,203.78,203.7,23.09269547]
[1731482890773,27.99989547,203.78,203.71,23.776884]
[1731482890968,0.85197035,203.81,203.74,23.09269547]
[1731482891213,23.09269547,203.82,203.75,23.776884]
[1731482891569,29.62209547,203.84,203.77,23.776884]
[1731482891765,23.09269547,203.89,203.8,23.09269547]
[1731482892095,23.09269547,203.87,203.79,23.776884]
[1731482892393,23.09269547,203.81,203.72,23.09269547]
[1731482892569,23.09269547,203.77,203.73,23.776884]
[1731482892998,23.09269547,203.75,203.64,35.36889547]
[1731482893169,23.09269547,203.7,203.6,28.00419547]
[1731482893369,23.09269547,203.68,203.6,28.00419547]
[1731482894197,23.09269547,203.72,203.64,23.09269547]
[1731482894376,23.09269547,203.72,203.6,40.28309547]
[1731482894377,23.09269547,203.75,203.66,23.09269547]
[1731482894577,6.6424,203.78,203.66,23.09269547]
[1731482894578,23.09269547,203.73,203.66,23.09269547]
[1731482894779,23.09269547,203.73,203.65,4.9102]
[1731482894984,23.09269547,203.73,203.66,23.776884]
[1731482895187,23.09269547,203.71,203.62,23.09269547]
[1731482895375,23.09269547,203.71,203.66,312.0]
[1731482895569,23.09269547,203.69,203.6,23.09269547]
[1731482895774,23.09269547,203.67,203.6,23.09269547]
[1731482896392,23.09269547,203.71,203.62,23.09269547]
[1731482896687,23.09269547,203.71,203.56,6.2901]
[1731482896688,28.00169547,203.71,203.64,23.09269547]
[1731482896875,23.09269547,203.69,203.64,23.776884]
[1731482897071,23.09269547,203.71,203.64,23.776884]
[1731482897280,23.09269547,203.73,203.64,46.86957947]
[1731482898591,23.09269547,203.75,203.68,17.1837]
[1731482898794,28.00069547,203.75,203.69,23.776884]
[1731482899088,28.00069547,203.75,203.64,23.09269547]
[1731482899089,23.09269547,203.71,203.64,23.09269547]
[1731482899298,4.908,203.75,203.61,4.9113]
[1731482899499,23.09269547,203.69,203.61,4.9113]
[1731482899672,23.09269547,203.69,203.61,17.1896]
[1731482900174,23.09269547,203.69,203.61,12.2783]
[1731482900374,23.09269547,203.69,203.61,17.1896]
[1731482900575,23.09269547,203.67,203.59,4.9116]
[1731482900781,23.09269547,203.65,203.59,4.9116]
[1731482901083,28.00179547,203.71,203.62,23.09269547]
[1731482901390,23.09269547,203.69,203.59,17.1911]
[1731482901604,23.09269547,203.69,203.6,23.09269547]
[1731482901976,23.09269547,203.69,203.62,312.0]
[1731482902178,23.09269547,203.71,203.63,23.776884]
[1731482902495,23.09269547,203.75,203.67,23.776884]
[1731482903298,4.9082,203.74,203.67,23.776884]
[1731482903682,23.09269547,203.69,203.63,23.776884]
[1731482904194,23.09269547,203.67,203.61,23.776884]
[1731482904394,23.09269547,203.67,203.6,4.9114]
[1731482905704,23.09269547,203.67,203.61,23.776884]
[1731482906280,23.09269547,203.69,203.62,23.09269547]
[1731482906486,4.9086,203.72,203.65,23.776884]
[1731482909003,4.9086,203.72,203.67,312.0]
[1731482909385,47.62689547,203.8,203.67,312.0]
[1731482909386,4.9082,203.74,203.68,23.776884]
[1731482911399,23.09269547,203.71,203.63,12.2769]
[1731482911602,23.09269547,203.71,203.56,6.3901]
[1731482911603,23.09269547,203.69,203.6,23.09269547]
[1731482911805,23.09269547,203.67,203.58,23.09269547]
[1731482912006,23.09269547,203.63,203.56,29.38279547]
[1731482912308,23.09269547,203.63,203.56,6.2901]
[1731482912490,23.09269547,203.63,203.56,11.2026]
[1731482912688,23.09269547,203.63,203.56,6.2901]
[1731482912904,23.09269547,203.63,203.56,11.2026]
[1731482913105,0.85247904,203.68,203.56,46.57659547]
[1731482913409,23.09269547,203.67,203.6,23.09269547]
[1731482913735,4.9091,203.7,203.6,23.09269547]
[1731482913886,23.09269547,203.69,203.6,23.09269547]
[1731482914081,23.09269547,203.69,203.61,23.776884]
[1731482914285,4.9091,203.7,203.61,23.776884]
[1731482914483,23.09269547,203.69,203.63,312.0]
[1731482915307,23.09269547,203.65,203.57,4.9122]
[1731482915491,23.09269547,203.63,203.58,23.776884]
[1731482916313,4.9111,203.62,203.56,6.2901]
[1731482916494,23.09269547,203.61,203.52,23.09269547]
[1731482916696,23.09269547,203.61,203.54,23.09269547]
[1731482916996,4.9111,203.62,203.54,23.09269547]
[1731482917302,23.09269547,203.67,203.58,23.09269547]
[1731482917504,23.09269547,203.67,203.52,41.8648]
[1731482917689,23.94503893,203.71,203.63,23.776884]
[1731482918000,28.85403893,203.71,203.65,23.776884]
[1731482918386,0.85234346,203.71,203.66,23.776884]
[1731482918586,28.00129547,203.73,203.66,46.86957947]
[1731482918805,23.09269547,203.71,203.64,23.776884]
[1731482918999,23.94486567,203.75,203.68,23.09269547]
[1731482919310,28.85286567,203.75,203.69,23.776884]
[1731482919697,28.85286567,203.75,203.67,23.776884]
[1731482920790,23.09269547,203.73,203.67,23.776884]
[1731482920996,23.09269547,203.69,203.63,12.2771]
[1731482921307,23.09269547,203.69,203.6,43.32809547]
[1731482921888,23.09269547,203.67,203.58,28.00459547]
[1731482922190,0.1,203.73,203.57,6.0037]
[1731482922191,23.09269547,203.65,203.57,6.0037]
[1731482922389,23.09269547,203.63,203.54,44.10519547]
[1731482922821,4.9111,203.62,203.54,44.10519547]
[1731482923315,4.9111,203.62,203.54,56.38769547]
[1731482923613,28.00349547,203.63,203.54,56.38769547]
[1731482923993,28.00349547,203.63,203.55,23.776884]
[1731482924888,28.00349547,203.63,203.56,312.0]
[1731482925096,28.00209547,203.69,203.62,23.09269547]
[1731482925318,23.09269547,203.73,203.65,23.776884]
[1731482925607,23.09269547,203.71,203.65,23.776884]
[1731482925814,23.09269547,203.69,203.63,23.776884]
[1731482926012,23.09269547,203.69,203.61,23.776884]
[1731482926199,23.09269547,203.71,203.62,23.09269547]
[1731482926593,4.9091,203.7,203.63,23.776884]
[1731482928626,28.00159547,203.71,203.63,40.964784]
[1731482928999,28.00159547,203.71,203.66,23.776884]
[1731482929398,4.9086,203.73,203.66,46.86957947]
[1731482929603,28.00129547,203.73,203.66,39.956084]
[1731482929817,23.09269547,203.71,203.64,23.776884]
[1731482930515,4.9091,203.7,203.64,23.776884]
[1731482930713,23.09269547,203.67,203.59,4.9116]
[1731482932225,4.9101,203.66,203.6,23.776884]
[1731482932599,4.9101,203.66,203.6,335.776884]
[1731482933799,4.9101,203.66,203.6,23.776884]
[1731482933998,4.9101,203.66,203.56,22.2414]
[1731482933999,23.09269547,203.63,203.56,22.2414]
[1731482934216,23.09269547,203.63,203.54,12.2825]
[1731482934217,23.09269547,203.63,203.54,35.37519547]
[1731482934424,23.09269547,203.61,203.54,12.2825]
[1731482935627,4.9115,203.6,203.55,23.776884]
[1731482935918,23.09269547,203.59,203.51,11.2796]
[1731482936812,4.912,203.58,203.53,312.0]
[1731482937413,23.09269547,203.55,203.53,312.0]
[1731482937614,23.09269547,203.55,203.47,4.9145]
[1731482937813,23.09269547,203.51,203.44,0.512703]
[1731482938013,23.09269547,203.51,203.44,5.428103]
[1731482939206,28.00649547,203.51,203.44,24.289587]
[1731482939405,28.85842176,203.55,203.45,23.09269547]
[1731482939609,23.09269547,203.57,203.49,23.776884]
[1731482939807,23.09269547,203.57,203.51,23.776884]
[1731482940733,23.09269547,203.57,203.51,335.776884]
[1731482941112,28.85734169,203.59,203.51,28.690384]
[1731482941421,23.09269547,203.59,203.51,40.974784]
[1731482942633,28.00469547,203.59,203.51,40.974784]
[1731482944010,23.09269547,203.53,203.47,312.0]
[1731482944230,23.09269547,203.48,203.44,0.512703]
[1731482944422,23.09269547,203.46,203.44,0.512703]
[1731482944624,28.00779547,203.46,203.44,0.512703]
[1731482945641,23.09269547,203.5,203.44,5.428003]
[1731482945823,23.09269547,203.5,203.44,0.512703]
[1731482946215,23.09269547,203.48,203.44,0.512703]
[1731482946622,4.9147,203.47,203.44,0.512703]
[1731482946939,4.9144,203.49,203.44,0.512703]
[1731482947115,4.9144,203.49,203.44,312.512703]
[1731482947732,23.09269547,203.52,203.45,23.776884]
[1731482947933,23.09269547,203.56,203.48,23.09269547]
[1731482948538,23.09269547,203.56,203.49,23.776884]
[1731482948737,4.9127,203.55,203.49,23.776884]
[1731482949320,23.09269547,203.58,203.51,23.776884]
[1731482949629,23.09269547,203.6,203.53,23.776884]
[1731482949818,4.9113,203.61,203.55,23.776884]
[1731482950135,23.09269547,203.62,203.55,23.776884]
[1731482950527,4.9123,203.57,203.52,23.776884]
[1731482950721,23.09269547,203.56,203.49,12.2856]
[1731482951024,23.09269547,203.56,203.49,23.776884]
[1731482951527,4.912,203.59,203.51,23.776884]
[1731482951928,4.912,203.59,203.52,23.09269547]
[1731482952138,4.912,203.59,203.53,23.776884]
[1731482952637,23.09269547,203.58,203.5,23.09269547]
[1731482952843,4.912,203.59,203.51,23.776884]
[1731482953017,23.09269547,203.62,203.54,23.09269547]
[1731482953217,4.9115,203.61,203.55,23.776884]
[1731482953416,19.640733,203.65,203.55,23.776884]
[1731482953417,4.911,203.63,203.57,23.776884]
[1731482953620,23.09269547,203.6,203.5,23.09269547]
[1731482953836,23.09269547,203.6,203.51,23.776884]
[1731482954131,4.911,203.63,203.53,312.0]
[1731482954132,23.09269547,203.58,203.53,312.0]
[1731482954323,23.09269547,203.58,203.51,23.776884]
[1731482954526,4.9123,203.57,203.51,23.776884]
[1731482954835,23.09269547,203.6,203.5,23.09269547]
[1731482955030,23.09269547,203.6,203.52,23.09269547]
[1731482955227,23.09269547,203.6,203.5,23.09269547]
[1731482955934,23.09269547,203.6,203.51,23.776884]
[1731482956143,28.00439547,203.6,203.51,28.690584]
[1731482956632,4.9117,203.6,203.54,23.09269547]
[1731482956840,4.9117,203.6,203.55,23.776884]
[1731482957141,23.09269547,203.58,203.55,23.776884]
[1731482957341,23.09269547,203.58,203.53,23.776884]
[1731482957553,28.00439547,203.6,203.53,23.776884]
[1731482957839,28.00439547,203.6,203.52,23.776884]
[1731482959042,28.00439547,203.6,203.52,46.86957947]
[1731482960117,23.09269547,203.58,203.51,23.776884]
[1731482960636,23.09269547,203.54,203.46,23.09269547]
[1731482960838,23.09269547,203.54,203.46,312.0]
[1731482961026,23.09269547,203.52,203.44,0.512703]
[1731482961448,6.1189,203.56,203.44,0.512703]
[1731482961449,23.09269547,203.5,203.44,0.512703]
[1731482962319,24.9132,203.53,203.44,0.512703]
[1731482962533,23.09269547,203.49,203.44,0.512703]
[1731482962958,23.09269547,203.46,203.44,0.512703]
[1731482963941,23.09269547,203.5,203.44,0.512703]
[1731482964164,28.00589547,203.53,203.45,23.776884]
[1731482964950,28.00589547,203.53,203.45,28.691984]
[1731482965151,0.1,203.46,203.44,0.512703]
[1731482965352,23.29269547,203.46,203.44,0.512703]
[1731482965643,23.29269547,203.46,203.29,23.09269547]
[1731482965644,23.29269547,203.46,203.29,28.01159547]
[1731482965841,23.09269547,203.39,203.31,23.09269547]
[1731482966300,4.9137,203.51,203.38,17.2091]
[1731482966473,23.09269547,203.49,203.4,23.09269547]
[1731482967361,23.09269547,203.47,203.39,23.776884]
[1731482967665,23.09269547,203.47,203.39,335.776884]
[1731482968450,23.09269547,203.45,203.37,23.776884]
[1731482968667,4.9149,203.46,203.38,23.09269547]
[1731482968846,4.9149,203.46,203.39,23.776884]
[1731482969047,4.9149,203.46,203.38,23.09269547]
[1731482969549,23.09269547,203.4,203.31,23.09269547]
[1731482970560,4.9166,203.39,203.31,28.01119547]
[1731482970955,4.9166,203.39,203.32,23.776884]
[1731482971346,4.9166,203.39,203.33,312.0]
[1731482972464,23.09269547,203.42,203.34,23.776884]
[1731482974068,28.00869547,203.42,203.34,28.694584]
[1731482974566,23.09269547,203.38,203.29,35.39029547]
[1731482974867,23.09269547,203.36,203.27,28.01219547]
[1731482975755,23.09269547,203.36,203.27,340.01219547]
[1731482975956,23.09269547,203.28,203.18,22.2409]
[1731482976164,23.09269547,203.26,203.18,27.1624]
[1731482976364,23.09269547,203.29,203.21,4.9208]
[1731482976573,23.09269547,203.29,203.19,23.09269547]
[1731482976779,23.09269547,203.27,203.19,28.01399547]
[1731482977067,23.09269547,203.25,203.15,28.01499547]
[1731482977255,23.09269547,203.25,203.16,4.9221]
[1731482977569,23.09269547,203.25,203.15,23.09269547]
[1731482977964,28.01269547,203.25,203.16,4.9221]
[1731482978150,28.01269547,203.25,203.15,23.09269547]
[1731482978354,28.01269547,203.25,203.13,40.32269547]
[1731482978964,28.01269547,203.25,203.15,312.0]
[1731482979554,23.09269547,203.25,203.17,35.39739547]
[1731482979746,28.01159547,203.3,203.22,23.09269547]
[1731482979946,4.9189,203.3,203.23,23.776884]
[1731482981169,23.09269547,203.3,203.23,23.776884]
[1731482982653,4.919,203.29,203.24,312.512703]
[1731482984479,4.9187,203.31,203.24,335.60539847]
[1731482985161,23.09269547,203.3,203.24,312.512703]
[1731482986568,4.919,203.29,203.24,312.512703]
[1731482988160,4.919,203.29,203.24,0.512703]
[1731482988366,0.1,203.25,203.24,0.512703]
[1731482988669,23.19269547,203.26,203.24,0.512703]
[1731482988964,0.1,203.25,203.24,0.512703]
[1731482990063,4.92,203.25,203.24,0.512703]
[1731482990662,5.77422126,203.25,203.24,0.512703]
[1731482995278,13.56932312,203.25,203.24,0.512703]
[1731482995667,13.46932312,203.25,203.24,0.512703]
[1731482995870,13.46932312,203.25,203.24,3e-06]
[1731482996673,5.77422126,203.25,203.24,3e-06]
[1731482996992,12.2977,203.29,203.24,3e-06]
[1731482996993,23.09269547,203.28,203.24,3e-06]
[1731482997291,23.09269547,203.3,203.24,3e-06]
[1731482997479,23.09269547,203.28,203.24,3e-06]
[1731482998680,23.09269547,203.3,203.24,3e-06]
[1731482998884,28.01169547,203.3,203.24,3e-06]
[1731482999382,23.09269547,203.32,203.24,3e-06]
[1731482999567,28.01109547,203.32,203.24,3e-06]
[1731483000177,23.09269547,203.3,203.24,3e-06]
[1731483000589,4.919,203.29,203.24,3e-06]
[1731483001173,0.85391109,203.33,203.24,3e-06]
[1731483001174,23.09269547,203.32,203.24,3e-06]
[1731483001374,23.09269547,203.35,203.26,23.776884]
[1731483001585,23.09269547,203.33,203.26,23.776884]
[1731483002004,23.09269547,203.33,203.24,23.776887]
[1731483002284,23.09269547,203.31,203.24,335.776887]
[1731483002496,23.09269547,203.31,203.24,312.000003]
[1731483002669,23.09269547,203.25,203.24,3e-06]
[1731483003594,23.09269547,203.27,203.24,3e-06]
[1731483003893,23.09269547,203.29,203.24,3e-06]
[1731483004097,28.01089547,203.33,203.25,23.09269547]
[1731483004390,4.9182,203.33,203.27,23.09269547]
[1731483004590,4.9182,203.33,203.28,23.776884]
[1731483004790,23.94645755,203.35,203.28,23.776884]
[1731483005005,28.86415755,203.35,203.28,23.776884]
[1731483005694,28.86415755,203.35,203.28,335.776884]
[1731483005888,28.86415755,203.35,203.28,340.696084]
[1731483005889,5.77146208,203.35,203.28,340.696084]
[1731483006390,4.9159,203.42,203.32,23.776884]
[1731483006607,23.09269547,203.4,203.32,23.776884]
[1731483006890,23.09269547,203.42,203.36,23.776884]
[1731483007590,23.09269547,203.4,203.32,23.776884]
[1731483007794,28.00869547,203.42,203.33,23.09269547]
[1731483007985,23.09269547,203.44,203.36,23.09269547]
[1731483008189,23.09269547,203.48,203.39,23.776884]
[1731483008393,23.09269547,203.48,203.4,23.09269547]
[1731483008577,23.09269547,203.48,203.39,23.776884]
[1731483008578,4.9149,203.46,203.39,23.776884]
[1731483008892,23.09269547,203.44,203.35,23.776884]
[1731483009097,23.09269547,203.42,203.34,23.09269547]
[1731483009294,23.09269547,203.38,203.29,12.2972]
[1731483009892,23.09269547,203.38,203.28,29.12739547]
[1731483010200,0.85365147,203.43,203.28,6.0347]
[1731483010201,23.09269547,203.34,203.28,6.0347]
[1731483010407,23.29269547,203.4,203.24,12.300303]
[1731483010408,23.09269547,203.3,203.24,3e-06]
[1731483010575,23.09269547,203.26,203.24,3e-06]
[1731483010776,4.92,203.25,203.24,3e-06]
[1731483013398,23.09269547,203.28,203.24,3e-06]
[1731483013573,0.85401321,203.27,203.24,3e-06]
[1731483013773,23.09269547,203.3,203.24,3e-06]
[1731483014485,0.85381566,203.34,203.28,23.09269547]
[1731483014690,0.85381566,203.34,203.29,23.776884]
[1731483015071,28.00989547,203.37,203.29,23.776884]
[1731483015281,28.86347904,203.37,203.29,23.776884]
[1731483015697,28.86347904,203.37,203.29,335.776884]
[1731483015991,23.09269547,203.35,203.29,312.0]
[1731483016593,23.09269547,203.35,203.28,23.776884]